[Event "*** Titled Tuesday 3|2 Blitz"]
[Site "Chess.com"]
[Date "2017.06.06"]
[Round "8"]
[White "Quiet_Desperation"]
[Black "Paul66666"]
[Result "1/2-1/2"]
[WhiteElo "1988"]
[BlackElo "2534"]
[TimeControl "180+2"]
[EndTime "15:37:44 PDT"]
[Termination "Game drawn by agreement"]

1. e4 {[%clk 0:03:01.9]} 1... c5 {[%clk 0:03:00.5]} 2. Nf3 {[%clk 0:03:00.9]}
2... Nc6 {[%clk 0:03:01]} 3. d4 {[%clk 0:03:02]} 3... cxd4 {[%clk 0:03:02.5]} 4.
Nxd4 {[%clk 0:03:03.5]} 4... Nf6 {[%clk 0:03:04.4]} 5. Nc3 {[%clk 0:03:04.8]}
5... d6 {[%clk 0:03:05.4]} 6. Bc4 {[%clk 0:03:00.4]} 6... Qb6 {[%clk 0:02:59]}
7. Nb3 {[%clk 0:02:58.2]} 7... e6 {[%clk 0:02:57.3]} 8. Be3 {[%clk 0:02:57.9]}
8... Qc7 {[%clk 0:02:57.8]} 9. Bd3 {[%clk 0:02:58]} 9... a6 {[%clk 0:02:57.3]}
10. f4 {[%clk 0:02:55.2]} 10... Be7 {[%clk 0:02:58.4]} 11. O-O {[%clk 0:02:56]}
11... b5 {[%clk 0:02:59.5]} 12. a3 {[%clk 0:02:57]} 12... Bb7 {[%clk 0:03:00.6]}
13. Kh1 {[%clk 0:02:58.5]} 13... b4 {[%clk 0:03:00.1]} 14. axb4 {[%clk
0:02:58.2]} 14... Nxb4 {[%clk 0:03:02]} 15. Qe2 {[%clk 0:02:57.2]} 15... O-O
{[%clk 0:03:00]} 16. Rf3 {[%clk 0:02:57.5]} 16... Ng4 {[%clk 0:02:40.3]} 17. Bg1
{[%clk 0:02:53.2]} 17... f5 {[%clk 0:02:31]} 18. Rh3 {[%clk 0:02:29.9]} 18...
Nxd3 {[%clk 0:02:23.2]} 19. cxd3 {[%clk 0:02:29.9]} 19... Bf6 {[%clk 0:02:10.3]}
20. Nd4 {[%clk 0:02:24.3]} 20... Rae8 {[%clk 0:02:03.5]} 21. Re1 {[%clk
0:01:09.5]} 21... Qd7 {[%clk 0:02:04.1]} 22. Qc2 {[%clk 0:01:08.3]} 22... Kh8
{[%clk 0:01:26.3]} 23. Qb3 {[%clk 0:00:57.3]} 23... Qc8 {[%clk 0:00:56]} 24. Rf3
{[%clk 0:00:50.6]} 24... h6 {[%clk 0:00:37.5]} 25. h3 {[%clk 0:00:47.4]} 25...
Bxd4 {[%clk 0:00:38.5]} 26. Bxd4 {[%clk 0:00:46.6]} 26... e5 {[%clk 0:00:39.8]}
27. Bg1 {[%clk 0:00:36.6]} 27... fxe4 {[%clk 0:00:39.3]} 28. Nxe4 {[%clk
0:00:35.3]} 28... Bxe4 {[%clk 0:00:38.8]} 29. dxe4 {[%clk 0:00:29]} 29... Nf6
{[%clk 0:00:39.7]} 30. f5 {[%clk 0:00:29.8]} 30... d5 {[%clk 0:00:37.7]} 31.
exd5 {[%clk 0:00:29.2]} 31... e4 {[%clk 0:00:39.6]} 32. Rf4 {[%clk 0:00:26.3]}
32... Qc7 {[%clk 0:00:40.9]} 33. Bh2 {[%clk 0:00:26.6]} 33... Qc5 {[%clk
0:00:39.5]} 34. Qb7 {[%clk 0:00:22.5]} 34... a5 {[%clk 0:00:33.2]} 35. Bg1
{[%clk 0:00:18.6]} 35... Qd6 {[%clk 0:00:29]} 36. Bh2 {[%clk 0:00:18.2]} 36...
Qc5 {[%clk 0:00:30.1]} 37. Bg1 {[%clk 0:00:19.5]} 37... Qd6 {[%clk 0:00:25.7]}
38. Bh2 {[%clk 0:00:20.4]} 38... Qd8 {[%clk 0:00:18]} 39. Qc6 {[%clk 0:00:16.5]}
39... e3 {[%clk 0:00:14.1]} 40. d6 {[%clk 0:00:16.8]} 40... e2 {[%clk
0:00:13.2]} 41. Rf2 {[%clk 0:00:17.6]} 41... Re4 {[%clk 0:00:07.3]} 42. Rfxe2
{[%clk 0:00:17.7]} 42... Rd4 {[%clk 0:00:08.1]} 43. Be5 {[%clk 0:00:15.1]} 43...
Rd3 {[%clk 0:00:06.4]} 44. Bxf6 {[%clk 0:00:16]} 44... Qxf6 {[%clk 0:00:08.3]}
45. Re8 {[%clk 0:00:13.3]} 45... Rxe8 {[%clk 0:00:06.5]} 46. Qxe8+ {[%clk
0:00:11.5]} 46... Kh7 {[%clk 0:00:08.4]} 47. d7 {[%clk 0:00:12.7]} 47... Rd2
{[%clk 0:00:06]} 48. Qe6 {[%clk 0:00:09.9]} 48... Qg5 {[%clk 0:00:04]} 49. Qe4
{[%clk 0:00:06.3]} 49... Rxd7 {[%clk 0:00:02.6]} 50. f6+ {[%clk 0:00:07.3]}
50... Qg6 {[%clk 0:00:03.5]} 51. Qxg6+ {[%clk 0:00:07.7]} 51... Kxg6 {[%clk
0:00:05.4]} 52. fxg7 {[%clk 0:00:08.2]} 52... Kxg7 {[%clk 0:00:07.3]} 53. Re5
{[%clk 0:00:08.9]} 53... Rb7 {[%clk 0:00:07.8]} 54. Rxa5 {[%clk 0:00:09.5]}
54... Rxb2 {[%clk 0:00:08.5]} 55. Kh2 {[%clk 0:00:11]} 55... Rb3 {[%clk
0:00:09.6]} 56. Ra6 {[%clk 0:00:12.4]} 56... h5 {[%clk 0:00:09.6]} 57. h4 {[%clk
0:00:13.4]} 57... Rc3 {[%clk 0:00:10.3]} 58. g3 {[%clk 0:00:13.7]} 58... Rd3
{[%clk 0:00:11.2]} 59. Rb6 {[%clk 0:00:14.9]} 59... Rc3 {[%clk 0:00:12.2]} 60.
Re6 {[%clk 0:00:14.9]} 60... Rd3 {[%clk 0:00:13.1]} 61. Ra6 {[%clk 0:00:13.9]}
61... Rc3 {[%clk 0:00:13.8]} 62. Kh3 {[%clk 0:00:15.1]} 62... Rd3 {[%clk
0:00:14.5]} 63. Kh2 {[%clk 0:00:16.5]} 63... Rc3 {[%clk 0:00:14.7]} 64. Rb6
{[%clk 0:00:17.6]} 64... Rd3 {[%clk 0:00:14]} 1/2-1/2

[Event "*** Titled Tuesday 3|2 Blitz"]
[Site "Chess.com"]
[Date "2017.06.06"]
[Round "8"]
[White "the_drake"]
[Black "Blitzstream"]
[Result "1-0"]
[WhiteElo "2141"]
[BlackElo "2461"]
[TimeControl "180+2"]
[EndTime "15:37:44 PDT"]
[Termination "the_drake won by resignation"]

1. e4 {[%clk 0:03:02]} 1... e6 {[%clk 0:03:00.5]} 2. d4 {[%clk 0:03:01.7]} 2...
d6 {[%clk 0:03:00.7]} 3. Nd2 {[%clk 0:03:03.4]} 3... Qe7 {[%clk 0:03:00]} 4. Bd3
{[%clk 0:03:04.9]} 4... Kd8 {[%clk 0:03:01.1]} 5. Ne2 {[%clk 0:03:05.5]} 5...
Qe8 {[%clk 0:03:02.3]} 6. f3 {[%clk 0:03:06.2]} 6... b6 {[%clk 0:03:02.3]} 7. c4
{[%clk 0:03:07.1]} 7... Bb7 {[%clk 0:03:02.6]} 8. b4 {[%clk 0:03:08]} 8... a5
{[%clk 0:03:02.9]} 9. b5 {[%clk 0:03:07.5]} 9... Nd7 {[%clk 0:03:02.9]} 10. a4
{[%clk 0:03:08.3]} 10... g6 {[%clk 0:03:01.4]} 11. Bb2 {[%clk 0:03:08.8]} 11...
Bg7 {[%clk 0:03:02.1]} 12. Qc2 {[%clk 0:03:08.4]} 12... e5 {[%clk 0:03:02.6]}
13. dxe5 {[%clk 0:03:02.5]} 13... Bxe5 {[%clk 0:03:00.9]} 14. Nb3 {[%clk
0:02:52.2]} 14... Ne7 {[%clk 0:02:49.1]} 15. O-O-O {[%clk 0:02:47.2]} 15... Kc8
{[%clk 0:02:49.1]} 16. Kb1 {[%clk 0:02:46.9]} 16... Qf8 {[%clk 0:02:44.2]} 17.
Nc3 {[%clk 0:02:41.3]} 17... Qg7 {[%clk 0:02:41.4]} 18. Nd5 {[%clk 0:02:41.6]}
18... Bxd5 {[%clk 0:02:35.9]} 19. exd5 {[%clk 0:02:36.8]} 19... Re8 {[%clk
0:01:55.5]} 20. f4 {[%clk 0:02:35.8]} 20... Bxb2 {[%clk 0:01:54.7]} 21. Qxb2
{[%clk 0:02:35.5]} 21... Qxb2+ {[%clk 0:01:53.9]} 22. Kxb2 {[%clk 0:02:36.4]}
22... Nc5 {[%clk 0:01:54.6]} 23. Nxc5 {[%clk 0:02:36.2]} 23... dxc5 {[%clk
0:01:51]} 24. Rhe1 {[%clk 0:02:36.5]} 24... Kd7 {[%clk 0:01:51.8]} 25. Kc3
{[%clk 0:02:36.5]} 25... Ng8 {[%clk 0:01:51.4]} 26. g4 {[%clk 0:02:35.5]} 26...
Nf6 {[%clk 0:01:48.6]} 27. h3 {[%clk 0:02:36.4]} 27... Rxe1 {[%clk 0:01:48]} 28.
Rxe1 {[%clk 0:02:36.9]} 28... Re8 {[%clk 0:01:49.5]} 29. Rxe8 {[%clk 0:02:36.7]}
29... Nxe8 {[%clk 0:01:51.4]} 30. Kd2 {[%clk 0:02:36.5]} 30... Nd6 {[%clk
0:01:52]} 31. Ke3 {[%clk 0:02:37.3]} 31... Ke7 {[%clk 0:01:51.5]} 32. f5 {[%clk
0:02:37.1]} 32... Kf6 {[%clk 0:01:50.1]} 33. Kf4 {[%clk 0:02:35.8]} 33... g5+
{[%clk 0:01:47.7]} 34. Ke3 {[%clk 0:02:35.2]} 34... Ke5 {[%clk 0:01:48.8]} 35.
Be2 {[%clk 0:02:26.1]} 35... h5 {[%clk 0:01:30]} 36. Bd3 {[%clk 0:02:08.7]}
36... h4 {[%clk 0:01:05.5]} 37. Be2 {[%clk 0:02:08.4]} 37... Ne4 {[%clk
0:01:06.5]} 38. Bd3 {[%clk 0:02:07.2]} 38... Ng3 {[%clk 0:01:07.4]} 39. Bc2
{[%clk 0:01:59.7]} 39... Nf1+ {[%clk 0:00:54.4]} 40. Ke2 {[%clk 0:02:00.3]}
40... Kd4 {[%clk 0:00:45.2]} 41. Kxf1 {[%clk 0:01:55.6]} 41... f6 {[%clk
0:00:46.1]} 42. Bd1 {[%clk 0:01:00.4]} 42... Kxc4 {[%clk 0:00:46.5]} 43. Ke2
{[%clk 0:01:00.3]} 43... Kd4 {[%clk 0:00:34]} 44. Kd2 {[%clk 0:00:58]} 44... Ke4
{[%clk 0:00:34.5]} 45. Ke2 {[%clk 0:00:57.8]} 45... Kd4 {[%clk 0:00:31]} 46. Kd2
{[%clk 0:00:55.4]} 46... Ke4 {[%clk 0:00:31.9]} 47. Ke2 {[%clk 0:00:45.7]} 47...
Kd4 {[%clk 0:00:09.3]} 48. Bc2 {[%clk 0:00:46.4]} 48... Kc3 {[%clk 0:00:08.2]}
49. Kd1 {[%clk 0:00:45.5]} 49... Kc4 {[%clk 0:00:08.6]} 50. Kd2 {[%clk
0:00:46.4]} 50... Kd4 {[%clk 0:00:09.9]} 51. Bd3 {[%clk 0:00:46.4]} 51... Kxd5
{[%clk 0:00:05.6]} 52. Ke3 {[%clk 0:00:45.4]} 52... Ke5 {[%clk 0:00:05.4]} 53.
Be4 {[%clk 0:00:45]} 53... c4 {[%clk 0:00:05.5]} 54. Bf3 {[%clk 0:00:42]} 54...
c3 {[%clk 0:00:05.6]} 55. Be4 {[%clk 0:00:39.1]} 55... Kd6 {[%clk 0:00:04.3]}
56. Kd4 {[%clk 0:00:40]} 56... c5+ {[%clk 0:00:02.7]} 57. bxc6 {[%clk
0:00:39.6]} 57... c2 {[%clk 0:00:04]} 58. Bxc2 {[%clk 0:00:39.8]} 58... Kxc6
{[%clk 0:00:05.9]} 59. Be4+ {[%clk 0:00:40.2]} 59... Kd6 {[%clk 0:00:06.2]} 1-0

[Event "*** Titled Tuesday 3|2 Blitz"]
[Site "Chess.com"]
[Date "2017.06.06"]
[Round "8"]
[White "Illingworth"]
[Black "GMNeiksans"]
[Result "1/2-1/2"]
[WhiteElo "2710"]
[BlackElo "2684"]
[TimeControl "180+2"]
[EndTime "15:38:13 PDT"]
[Termination "Game drawn by repetition"]

1. d4 {[%clk 0:03:02]} 1... Nf6 {[%clk 0:03:00.2]} 2. c4 {[%clk 0:03:02.8]} 2...
e6 {[%clk 0:03:01.1]} 3. Nc3 {[%clk 0:03:03.8]} 3... Bb4 {[%clk 0:03:01.4]} 4.
e3 {[%clk 0:03:05]} 4... O-O {[%clk 0:03:01.3]} 5. Ne2 {[%clk 0:03:05.9]} 5...
Re8 {[%clk 0:03:01.3]} 6. a3 {[%clk 0:03:06.7]} 6... Bf8 {[%clk 0:03:01.7]} 7.
Ng3 {[%clk 0:03:07.4]} 7... d5 {[%clk 0:03:02.5]} 8. cxd5 {[%clk 0:03:08.4]}
8... exd5 {[%clk 0:03:03.2]} 9. Bd3 {[%clk 0:03:09.4]} 9... b6 {[%clk 0:03:03]}
10. O-O {[%clk 0:03:10]} 10... Bb7 {[%clk 0:03:02.8]} 11. b4 {[%clk 0:03:10.7]}
11... g6 {[%clk 0:03:00.8]} 12. Rb1 {[%clk 0:03:11.2]} 12... Bg7 {[%clk
0:03:01.3]} 13. a4 {[%clk 0:03:10.9]} 13... c6 {[%clk 0:02:53.2]} 14. Ba3 {[%clk
0:03:09]} 14... Nbd7 {[%clk 0:02:52.5]} 15. Qb3 {[%clk 0:03:02.2]} 15... h5
{[%clk 0:02:51.1]} 16. Rfd1 {[%clk 0:02:56.2]} 16... Rc8 {[%clk 0:02:45.8]} 17.
a5 {[%clk 0:02:46]} 17... b5 {[%clk 0:02:44.2]} 18. Nge2 {[%clk 0:02:39.2]}
18... Nf8 {[%clk 0:02:41.9]} 19. Qc2 {[%clk 0:02:37.7]} 19... Rc7 {[%clk
0:02:37.9]} 20. Nc1 {[%clk 0:02:33.4]} 20... Bc8 {[%clk 0:02:32.1]} 21. Nb3
{[%clk 0:02:33.2]} 21... Bg4 {[%clk 0:02:32]} 22. Re1 {[%clk 0:02:29.5]} 22...
h4 {[%clk 0:02:31.4]} 23. h3 {[%clk 0:02:27.5]} 23... Bc8 {[%clk 0:02:31.6]} 24.
Nc5 {[%clk 0:02:21.7]} 24... N8h7 {[%clk 0:02:28.4]} 25. Ne2 {[%clk 0:02:21.1]}
25... Ng5 {[%clk 0:02:22.6]} 26. Nf4 {[%clk 0:02:21.7]} 26... Nge4 {[%clk
0:02:14.2]} 27. Nxe4 {[%clk 0:01:59.1]} 27... dxe4 {[%clk 0:02:13.8]} 28. Be2
{[%clk 0:01:52.5]} 28... g5 {[%clk 0:02:00.1]} 29. Nh5 {[%clk 0:01:52.1]} 29...
Nxh5 {[%clk 0:01:58.9]} 30. Bxh5 {[%clk 0:01:54]} 30... Qd5 {[%clk 0:01:40.2]}
31. Rbc1 {[%clk 0:01:48.8]} 31... Be6 {[%clk 0:01:39.5]} 32. Qd2 {[%clk
0:01:39.2]} 32... Bf8 {[%clk 0:01:34.1]} 33. Rc3 {[%clk 0:01:34.9]} 33... Qd7
{[%clk 0:01:25.2]} 34. Rec1 {[%clk 0:01:07.8]} 34... Bd5 {[%clk 0:01:25.7]} 35.
Be2 {[%clk 0:00:57.4]} 35... a6 {[%clk 0:01:20.6]} 36. Bd1 {[%clk 0:00:51.1]}
36... Qe6 {[%clk 0:01:20.8]} 37. Qb2 {[%clk 0:00:46.9]} 37... f5 {[%clk
0:01:19.8]} 38. Bb3 {[%clk 0:00:47.4]} 38... Rg7 {[%clk 0:01:19]} 39. Bxd5
{[%clk 0:00:45.8]} 39... cxd5 {[%clk 0:01:19.9]} 40. Rc6 {[%clk 0:00:46.6]}
40... Bd6 {[%clk 0:01:20.8]} 41. Kf1 {[%clk 0:00:33.4]} 41... g4 {[%clk
0:01:21.5]} 42. hxg4 {[%clk 0:00:28.9]} 42... fxg4 {[%clk 0:01:20.7]} 43. Rxa6
{[%clk 0:00:29.3]} 43... h3 {[%clk 0:01:16.1]} 44. g3 {[%clk 0:00:23.9]} 44...
Qf6 {[%clk 0:01:10.1]} 45. Qe2 {[%clk 0:00:22.8]} 45... Re6 {[%clk 0:00:40.3]}
46. Ra8+ {[%clk 0:00:19.2]} 46... Kh7 {[%clk 0:00:36.8]} 47. Kg1 {[%clk
0:00:18.7]} 47... Rf7 {[%clk 0:00:32.7]} 48. Rc2 {[%clk 0:00:14.6]} 48... Qf5
{[%clk 0:00:31.4]} 49. a6 {[%clk 0:00:14.8]} 49... Ree7 {[%clk 0:00:32.4]} 50.
Rd8 {[%clk 0:00:14.5]} 50... Rd7 {[%clk 0:00:20.7]} 51. Rxd7 {[%clk 0:00:14.4]}
51... Qxd7 {[%clk 0:00:21.4]} 52. a7 {[%clk 0:00:09.2]} 52... Qxa7 {[%clk
0:00:21.6]} 53. Qxg4 {[%clk 0:00:09.6]} 53... Qxa3 {[%clk 0:00:22]} 54. Qh5+
{[%clk 0:00:10.5]} 54... Kg7 {[%clk 0:00:22.7]} 55. Qg5+ {[%clk 0:00:10.1]}
55... Kh7 {[%clk 0:00:22.2]} 56. Qh5+ {[%clk 0:00:10.9]} 56... Kg7 {[%clk
0:00:22.8]} 57. Qg5+ {[%clk 0:00:11.8]} 57... Kh7 {[%clk 0:00:20.1]} 58. Kh2
{[%clk 0:00:12.6]} 58... Qd3 {[%clk 0:00:14]} 59. Qh5+ {[%clk 0:00:13]} 59...
Kg7 {[%clk 0:00:15.1]} 60. Qg5+ {[%clk 0:00:13.1]} 60... Kh7 {[%clk 0:00:16]}
61. Qh5+ {[%clk 0:00:13.7]} 61... Kg7 {[%clk 0:00:16.9]} 62. Qg5+ {[%clk
0:00:14.7]} 62... Kh7 {[%clk 0:00:17.7]} 63. Qh5+ {[%clk 0:00:15.7]} 63... Kg7
{[%clk 0:00:18.4]} 64. Qg5+ {[%clk 0:00:16.7]} 64... Kh7 {[%clk 0:00:19]} 65.
Qh5+ {[%clk 0:00:17.7]} 65... Kg7 {[%clk 0:00:19.8]} 66. Qg5+ {[%clk 0:00:18.8]}
66... Kh7 {[%clk 0:00:20.6]} 1/2-1/2

[Event "*** Titled Tuesday 3|2 Blitz"]
[Site "Chess.com"]
[Date "2017.06.06"]
[Round "8"]
[White "robbykevlishvili"]
[Black "Federtiu"]
[Result "0-1"]
[WhiteElo "2110"]
[BlackElo "2450"]
[TimeControl "180+2"]
[EndTime "15:39:03 PDT"]
[Termination "Federtiu won on time"]

1. e4 {[%clk 0:03:02]} 1... c5 {[%clk 0:02:58.4]} 2. Nf3 {[%clk 0:02:58.2]} 2...
Nc6 {[%clk 0:02:58]} 3. d4 {[%clk 0:02:59.5]} 3... cxd4 {[%clk 0:02:59.9]} 4.
Nxd4 {[%clk 0:03:01.4]} 4... e5 {[%clk 0:03:01.4]} 5. Nb5 {[%clk 0:03:01.6]}
5... d6 {[%clk 0:03:02.8]} 6. c4 {[%clk 0:03:02.7]} 6... Be7 {[%clk 0:02:59.5]}
7. N1c3 {[%clk 0:03:03.6]} 7... a6 {[%clk 0:02:59.7]} 8. Na3 {[%clk 0:03:04.5]}
8... h6 {[%clk 0:02:28.1]} 9. g3 {[%clk 0:02:58]} 9... Bg5 {[%clk 0:02:28]} 10.
Bg2 {[%clk 0:02:50.1]} 10... Nf6 {[%clk 0:02:20.7]} 11. O-O {[%clk 0:02:47.5]}
11... Bxc1 {[%clk 0:02:21.7]} 12. Rxc1 {[%clk 0:02:48.1]} 12... O-O {[%clk
0:02:20]} 13. Nc2 {[%clk 0:02:48.6]} 13... Bg4 {[%clk 0:02:14.8]} 14. Qd2 {[%clk
0:02:46.5]} 14... Qb6 {[%clk 0:01:59.2]} 15. b3 {[%clk 0:02:46.9]} 15... Rfd8
{[%clk 0:01:56.9]} 16. h3 {[%clk 0:02:44]} 16... Be6 {[%clk 0:01:55.4]} 17. Kh2
{[%clk 0:02:44.6]} 17... Ne8 {[%clk 0:01:25.1]} 18. f4 {[%clk 0:02:45.2]} 18...
f6 {[%clk 0:01:26.3]} 19. Rcd1 {[%clk 0:02:37.5]} 19... Qc5 {[%clk 0:01:22.5]}
20. a4 {[%clk 0:02:10.5]} 20... Nc7 {[%clk 0:01:21]} 21. Nd5 {[%clk 0:02:07.9]}
21... Rac8 {[%clk 0:00:34.2]} 22. Rc1 {[%clk 0:01:56.5]} 22... Qa7 {[%clk
0:00:20.6]} 23. a5 {[%clk 0:01:55.5]} 23... Bf7 {[%clk 0:00:16.1]} 24. Nb6
{[%clk 0:01:55.2]} 24... Rb8 {[%clk 0:00:17.1]} 25. h4 {[%clk 0:01:52.8]} 25...
Ne6 {[%clk 0:00:17.7]} 26. Ne3 {[%clk 0:01:43.3]} 26... Ned4 {[%clk 0:00:16.7]}
27. Rb1 {[%clk 0:01:37.8]} 27... Nxa5 {[%clk 0:00:15.1]} 28. Ned5 {[%clk
0:01:17.2]} 28... Bxd5 {[%clk 0:00:13.1]} 29. Nxd5 {[%clk 0:01:16.8]} 29... Nac6
{[%clk 0:00:13.8]} 30. b4 {[%clk 0:01:14.6]} 30... Re8 {[%clk 0:00:10.1]} 31. b5
{[%clk 0:01:13.7]} 31... axb5 {[%clk 0:00:10.3]} 32. cxb5 {[%clk 0:01:15.6]}
32... Ne7 {[%clk 0:00:11.9]} 33. Ra1 {[%clk 0:00:57.8]} 33... Qc5 {[%clk
0:00:12]} 34. Rfc1 {[%clk 0:00:58.7]} 34... Qxb5 {[%clk 0:00:12.2]} 35. Nc7
{[%clk 0:00:56]} 35... Qe2 {[%clk 0:00:07.6]} 36. Qxe2 {[%clk 0:00:46.3]} 36...
Nxe2 {[%clk 0:00:09.5]} 37. Re1 {[%clk 0:00:47.8]} 37... Rec8 {[%clk 0:00:06.9]}
38. Nb5 {[%clk 0:00:47.3]} 38... Nd4 {[%clk 0:00:07.4]} 39. Nxd4 {[%clk
0:00:44.7]} 39... exd4 {[%clk 0:00:07.8]} 40. Red1 {[%clk 0:00:44.6]} 40... Rc4
{[%clk 0:00:07]} 41. Bh3 {[%clk 0:00:43.3]} 41... Kf7 {[%clk 0:00:07.4]} 42. Ra2
{[%clk 0:00:41.3]} 42... b5 {[%clk 0:00:07.6]} 43. Rb2 {[%clk 0:00:41]} 43...
Nc6 {[%clk 0:00:07]} 44. Bf1 {[%clk 0:00:41.9]} 44... Rc5 {[%clk 0:00:08.2]} 45.
Ra1 {[%clk 0:00:33.6]} 45... b4 {[%clk 0:00:07.8]} 46. Kg2 {[%clk 0:00:32.2]}
46... b3 {[%clk 0:00:07.9]} 47. Rab1 {[%clk 0:00:29.3]} 47... Rc2+ {[%clk
0:00:08.4]} 48. Kf3 {[%clk 0:00:24.3]} 48... Rc3+ {[%clk 0:00:08.6]} 49. Kg4
{[%clk 0:00:23.4]} 49... g6 {[%clk 0:00:06.7]} 50. Rxb3 {[%clk 0:00:22.6]} 50...
Rbxb3 {[%clk 0:00:07.1]} 51. Rxb3 {[%clk 0:00:24.5]} 51... Rxb3 {[%clk
0:00:06.2]} 52. Bc4+ {[%clk 0:00:25.2]} 52... Ke7 {[%clk 0:00:06.7]} 53. Bxb3
{[%clk 0:00:27.1]} 53... d3 {[%clk 0:00:07.3]} 54. h5 {[%clk 0:00:20.4]} 54...
g5 {[%clk 0:00:04.1]} 55. Ba4 {[%clk 0:00:18.3]} 55... Nd4 {[%clk 0:00:03.5]}
56. Bd1 {[%clk 0:00:18.2]} 56... Nb5 {[%clk 0:00:04.1]} 57. Kf5 {[%clk
0:00:18.3]} 57... Kf7 {[%clk 0:00:03.1]} 58. Bb3+ {[%clk 0:00:18.8]} 58... Kg7
{[%clk 0:00:04.3]} 59. Bd1 {[%clk 0:00:18.5]} 59... Nc3 {[%clk 0:00:05.3]} 60.
Bb3 {[%clk 0:00:17.9]} 60... d2 {[%clk 0:00:06.4]} 61. Ke6 {[%clk 0:00:18.4]}
61... Nxe4 {[%clk 0:00:07.4]} 62. f5 {[%clk 0:00:18.2]} 62... Nc3 {[%clk
0:00:08]} 63. Kxd6 {[%clk 0:00:18]} 63... d1=Q+ {[%clk 0:00:09.9]} 64. Bxd1
{[%clk 0:00:18.8]} 64... Nxd1 {[%clk 0:00:11.8]} 65. Ke7 {[%clk 0:00:20.3]}
65... Ne3 {[%clk 0:00:12.9]} 66. Ke6 {[%clk 0:00:21.4]} 66... g4 {[%clk
0:00:13.1]} 67. Ke7 {[%clk 0:00:21.9]} 67... Nxf5+ {[%clk 0:00:15]} 68. Ke6
{[%clk 0:00:23.8]} 68... Nxg3 {[%clk 0:00:16.8]} 69. Kd5 {[%clk 0:00:25.5]}
69... Nxh5 {[%clk 0:00:18.7]} 70. Ke4 {[%clk 0:00:26.9]} 70... Kg6 {[%clk
0:00:20.4]} 0-1